[Event "*** Titled Tuesday 3|2 Blitz"]
[Site "Chess.com"]
[Date "2017.03.07"]
[Round "2"]
[White "Jadeit90"]
[Black "Makalexa"]
[Result "0-1"]
[WhiteElo "2137"]
[BlackElo "2122"]
[TimeControl "180+2"]
[EndTime "13:22:39 PST"]
[Termination "Makalexa won by checkmate"]

1. e4 {[%clk 0:02:24.7]} 1... e5 {[%clk 0:02:56.7]} 2. Nf3 {[%clk 0:02:22.5]}
2... Nc6 {[%clk 0:02:58.1]} 3. Nc3 {[%clk 0:02:16]} 3... Nf6 {[%clk 0:02:58.3]}
4. d4 {[%clk 0:02:16.7]} 4... Bb4 {[%clk 0:02:59.7]} 5. Bc4 {[%clk 0:02:15.1]}
5... Nxe4 {[%clk 0:02:51.2]} 6. O-O {[%clk 0:02:15.5]} 6... Bxc3 {[%clk
0:02:50.6]} 7. bxc3 {[%clk 0:02:15.7]} 7... d5 {[%clk 0:02:51.3]} 8. Re1 {[%clk
0:02:07.4]} 8... Nxc3 {[%clk 0:02:38.7]} 9. Qd2 {[%clk 0:02:06.6]} 9... dxc4
{[%clk 0:02:28.3]} 10. Qxc3 {[%clk 0:01:47.9]} 10... O-O {[%clk 0:02:26.6]} 11.
Nxe5 {[%clk 0:01:47.7]} 11... Qxd4 {[%clk 0:02:18.1]} 12. Bb2 {[%clk 0:01:32.4]}
12... Qxc3 {[%clk 0:02:12.4]} 13. Bxc3 {[%clk 0:01:34.3]} 13... Nxe5 {[%clk
0:02:12.8]} 14. Bxe5 {[%clk 0:01:32.8]} 14... c6 {[%clk 0:02:10.2]} 15. Bd6
{[%clk 0:01:31.8]} 15... Rd8 {[%clk 0:02:05.8]} 16. Bc7 {[%clk 0:01:29.2]} 16...
Rf8 {[%clk 0:02:06.1]} 17. Bd6 {[%clk 0:01:30.3]} 17... Bf5 {[%clk 0:01:30.5]}
18. Bxf8 {[%clk 0:01:30]} 18... Kxf8 {[%clk 0:01:32.4]} 19. c3 {[%clk
0:01:28.4]} 19... Rb8 {[%clk 0:01:28.4]} 20. Re3 {[%clk 0:01:27.7]} 20... Be6
{[%clk 0:01:26.7]} 21. Rd1 {[%clk 0:01:28.2]} 21... Ke7 {[%clk 0:01:26.5]} 22.
Rd4 {[%clk 0:01:28.1]} 22... b5 {[%clk 0:01:27.2]} 23. f4 {[%clk 0:01:29]} 23...
g6 {[%clk 0:01:27.1]} 24. Kf2 {[%clk 0:01:28.4]} 24... h5 {[%clk 0:01:25.3]} 25.
h3 {[%clk 0:01:28.4]} 25... a5 {[%clk 0:01:22.3]} 26. g4 {[%clk 0:01:23.8]}
26... hxg4 {[%clk 0:01:22.9]} 27. hxg4 {[%clk 0:01:25.7]} 27... c5 {[%clk
0:01:20.8]} 28. Rd2 {[%clk 0:01:25.4]} 28... Kf6 {[%clk 0:01:20.7]} 29. Kg3
{[%clk 0:01:23.7]} 29... b4 {[%clk 0:01:20.9]} 30. Re5 {[%clk 0:01:04.9]} 30...
b3 {[%clk 0:01:17.3]} 31. Rb2 {[%clk 0:01:05.8]} 31... a4 {[%clk 0:01:15]} 32.
a3 {[%clk 0:01:06.6]} 32... Rd8 {[%clk 0:01:09.9]} 33. Rxc5 {[%clk 0:00:54.8]}
33... Rd3+ {[%clk 0:01:09.7]} 34. Kf2 {[%clk 0:00:55.7]} 34... Rxc3 {[%clk
0:01:10.5]} 35. g5+ {[%clk 0:00:55.3]} 35... Ke7 {[%clk 0:01:08.7]} 36. Ke1
{[%clk 0:00:55.7]} 36... Re3+ {[%clk 0:01:06.8]} 37. Kd2 {[%clk 0:00:56.7]}
37... Rd3+ {[%clk 0:01:03.1]} 38. Ke2 {[%clk 0:00:57.2]} 38... Rh3 {[%clk
0:01:03]} 39. Rb1 {[%clk 0:00:53.4]} 39... c3 {[%clk 0:01:03]} 40. Rc7+ {[%clk
0:00:45.9]} 40... Kf8 {[%clk 0:01:01.9]} 41. Rb7 {[%clk 0:00:47]} 41... c2
{[%clk 0:01:00.8]} 42. Rc1 {[%clk 0:00:47.8]} 42... Bg4+ {[%clk 0:00:57.4]} 43.
Kd2 {[%clk 0:00:48.2]} 43... Bf5 {[%clk 0:00:40.3]} 44. Re1 {[%clk 0:00:47.7]}
44... Rf3 {[%clk 0:00:30.8]} 45. Rb8+ {[%clk 0:00:48.8]} 45... Kg7 {[%clk
0:00:31]} 46. Ree8 {[%clk 0:00:42.4]} 46... Rf2+ {[%clk 0:00:28.4]} 47. Ke3
{[%clk 0:00:24.4]} 47... c1=Q+ {[%clk 0:00:30.3]} 48. Kxf2 {[%clk 0:00:25.4]}
48... Qc2+ {[%clk 0:00:32.2]} 49. Kg3 {[%clk 0:00:26.2]} 49... Qc3+ {[%clk
0:00:29.9]} 50. Kh4 {[%clk 0:00:26.1]} 50... Qh3# {[%clk 0:00:27.9]} 0-1

[Event "*** Titled Tuesday 3|2 Blitz"]
[Site "Chess.com"]
[Date "2017.03.07"]
[Round "2"]
[White "Rbrrt"]
[Black "ChristopherYoo"]
[Result "1-0"]
[WhiteElo "2058"]
[BlackElo "2151"]
[TimeControl "180+2"]
[EndTime "13:22:40 PST"]
[Termination "Rbrrt won by resignation"]

1. e4 {[%clk 0:03:02]} 1... c5 {[%clk 0:02:57]} 2. Nf3 {[%clk 0:03:02.6]} 2...
d6 {[%clk 0:02:58]} 3. d4 {[%clk 0:03:04.1]} 3... cxd4 {[%clk 0:02:58.9]} 4.
Nxd4 {[%clk 0:03:06]} 4... Nf6 {[%clk 0:03:00]} 5. Nc3 {[%clk 0:03:07.6]} 5...
a6 {[%clk 0:03:00.8]} 6. h3 {[%clk 0:03:08.9]} 6... e6 {[%clk 0:02:55.8]} 7. g4
{[%clk 0:03:07.9]} 7... h6 {[%clk 0:02:55.2]} 8. Bg2 {[%clk 0:03:08.7]} 8... Be7
{[%clk 0:02:55.7]} 9. O-O {[%clk 0:03:10.2]} 9... Nbd7 {[%clk 0:02:45.3]} 10. f4
{[%clk 0:03:05.7]} 10... Qb6 {[%clk 0:01:59.8]} 11. Kh1 {[%clk 0:02:59.1]} 11...
e5 {[%clk 0:01:46.8]} 12. Nf5 {[%clk 0:02:58.3]} 12... Bf8 {[%clk 0:01:43.8]}
13. Be3 {[%clk 0:01:48.4]} 13... Qc7 {[%clk 0:01:44.1]} 14. Qd2 {[%clk 0:01:14]}
14... g6 {[%clk 0:01:40.4]} 15. Ng3 {[%clk 0:01:03.1]} 15... Be7 {[%clk
0:01:29]} 16. Rad1 {[%clk 0:00:59.8]} 16... b5 {[%clk 0:01:22.5]} 17. a3 {[%clk
0:00:22]} 17... exf4 {[%clk 0:01:13]} 18. Bxf4 {[%clk 0:00:22.9]} 18... Ne5
{[%clk 0:01:13.1]} 19. Bxe5 {[%clk 0:00:21.3]} 19... dxe5 {[%clk 0:01:12.5]} 20.
Nd5 {[%clk 0:00:22.7]} 20... Qd8 {[%clk 0:00:45.2]} 21. Nxf6+ {[%clk 0:00:18.9]}
21... Bxf6 {[%clk 0:00:45.2]} 22. Qf2 {[%clk 0:00:19.1]} 22... Qc7 {[%clk
0:00:21.7]} 23. Qxf6 {[%clk 0:00:19.4]} 23... O-O {[%clk 0:00:23]} 24. c3 {[%clk
0:00:17.7]} 24... Be6 {[%clk 0:00:23.3]} 25. Nf5 {[%clk 0:00:18.1]} 25... gxf5
{[%clk 0:00:22.3]} 26. gxf5 {[%clk 0:00:19.3]} 26... Bc4 {[%clk 0:00:20.3]} 27.
Rf3 {[%clk 0:00:20.4]} 27... Kh7 {[%clk 0:00:20.5]} 28. Rd6 {[%clk 0:00:20]}
28... Be6 {[%clk 0:00:18.1]} 29. Qxe5 {[%clk 0:00:16.2]} 29... Bc4 {[%clk
0:00:09.1]} 30. Qf6 {[%clk 0:00:14.6]} 30... Be6 {[%clk 0:00:09.1]} 31. Qd4
{[%clk 0:00:15.8]} 31... Rad8 {[%clk 0:00:08.5]} 32. e5 {[%clk 0:00:15.2]} 32...
Bc4 {[%clk 0:00:07.8]} 33. f6 {[%clk 0:00:16.4]} 33... Rxd6 {[%clk 0:00:08.2]}
34. exd6 {[%clk 0:00:17.5]} 34... Qd7 {[%clk 0:00:09]} 35. Rg3 {[%clk
0:00:17.8]} 35... Be6 {[%clk 0:00:06.4]} 36. Be4+ {[%clk 0:00:17.8]} 36... Kh8
{[%clk 0:00:06.8]} 37. Qe5 {[%clk 0:00:17.9]} 37... Rg8 {[%clk 0:00:06.3]} 38.
Rxg8+ {[%clk 0:00:17.8]} 38... Kxg8 {[%clk 0:00:07.2]} 39. Qg3+ {[%clk
0:00:19.3]} 39... Kf8 {[%clk 0:00:06.3]} 40. Qg7+ {[%clk 0:00:20.3]} 1-0

[Event "*** Titled Tuesday 3|2 Blitz"]
[Site "Chess.com"]
[Date "2017.03.07"]
[Round "2"]
[White "FrankieJay"]
[Black "LaStreetCmaMaison"]
[Result "1-0"]
[WhiteElo "2286"]
[BlackElo "2488"]
[TimeControl "180+2"]
[EndTime "13:22:50 PST"]
[Termination "FrankieJay won on time"]

1. e4 {[%clk 0:03:02]} 1... e6 {[%clk 0:02:59.7]} 2. d4 {[%clk 0:03:02.6]} 2...
d5 {[%clk 0:03:00.6]} 3. Nc3 {[%clk 0:03:03.8]} 3... Nf6 {[%clk 0:02:59.5]} 4.
Bg5 {[%clk 0:03:04.1]} 4... Be7 {[%clk 0:02:59.8]} 5. e5 {[%clk 0:03:04.7]} 5...
Nfd7 {[%clk 0:02:59.1]} 6. h4 {[%clk 0:03:06.2]} 6... O-O {[%clk 0:02:59.3]} 7.
Nf3 {[%clk 0:02:46.1]} 7... c5 {[%clk 0:02:59.8]} 8. dxc5 {[%clk 0:02:40.3]}
8... Nc6 {[%clk 0:02:58.5]} 9. Bd3 {[%clk 0:02:34.2]} 9... h6 {[%clk 0:02:55.5]}
10. Qe2 {[%clk 0:02:20.2]} 10... Nxc5 {[%clk 0:02:51.7]} 11. O-O-O {[%clk
0:02:18.6]} 11... Nxd3+ {[%clk 0:02:22.8]} 12. Qxd3 {[%clk 0:02:13.2]} 12... f5
{[%clk 0:01:58]} 13. Bxe7 {[%clk 0:02:02.6]} 13... Qxe7 {[%clk 0:01:57.2]} 14.
Rhe1 {[%clk 0:01:49.9]} 14... b5 {[%clk 0:01:47.6]} 15. Qxb5 {[%clk 0:01:25.3]}
15... Bd7 {[%clk 0:01:47.7]} 16. Nxd5 {[%clk 0:01:03.9]} 16... Qf7 {[%clk
0:01:27.2]} 17. Nf4 {[%clk 0:00:49.2]} 17... Rab8 {[%clk 0:01:11.8]} 18. Qd3
{[%clk 0:00:27.4]} 18... Rfd8 {[%clk 0:01:08.8]} 19. Qa3 {[%clk 0:00:28.2]}
19... Nb4 {[%clk 0:00:55]} 20. Rd2 {[%clk 0:00:20.2]} 20... Rdc8 {[%clk
0:00:54.2]} 21. Red1 {[%clk 0:00:19.9]} 21... Bc6 {[%clk 0:00:53.5]} 22. Kb1
{[%clk 0:00:20.5]} 22... Be4 {[%clk 0:00:53.9]} 23. Nd4 {[%clk 0:00:21]} 23...
Rb6 {[%clk 0:00:43.4]} 24. f3 {[%clk 0:00:21.6]} 24... Bd5 {[%clk 0:00:36.1]}
25. Nxd5 {[%clk 0:00:22.1]} 25... Nxd5 {[%clk 0:00:38]} 26. Ka1 {[%clk
0:00:20.8]} 26... Rcb8 {[%clk 0:00:30.9]} 27. c4 {[%clk 0:00:17.4]} 27... Nb4
{[%clk 0:00:28.9]} 28. Nb5 {[%clk 0:00:18]} 28... Ra6 {[%clk 0:00:29]} 29. Qxb4
{[%clk 0:00:19]} 29... Rab6 {[%clk 0:00:25.7]} 30. Rd8+ {[%clk 0:00:19.7]} 30...
Rxd8 {[%clk 0:00:25.6]} 31. Rxd8+ {[%clk 0:00:21.6]} 31... Kh7 {[%clk
0:00:27.5]} 32. Qf8 {[%clk 0:00:20.1]} 32... Qb7 {[%clk 0:00:06.8]} 33. Qg8+
{[%clk 0:00:19.6]} 33... Kg6 {[%clk 0:00:07.7]} 34. Rd6 {[%clk 0:00:19.4]} 34...
Rxd6 {[%clk 0:00:06.8]} 35. Nxd6 {[%clk 0:00:20.3]} 35... Qb6 {[%clk 0:00:05.1]}
36. Qxe6+ {[%clk 0:00:21]} 36... Kh7 {[%clk 0:00:05.6]} 37. Qxf5+ {[%clk
0:00:22.2]} 37... Kh8 {[%clk 0:00:04.9]} 38. Qc8+ {[%clk 0:00:17.7]} 38... Kh7
{[%clk 0:00:05.7]} 39. a3 {[%clk 0:00:15.6]} 39... Qg1+ {[%clk 0:00:05.4]} 40.
Ka2 {[%clk 0:00:15.8]} 40... Qxg2 {[%clk 0:00:07.3]} 41. Qf5+ {[%clk 0:00:15.9]}
41... Kh8 {[%clk 0:00:08.2]} 42. e6 {[%clk 0:00:17.4]} 42... Qe2 {[%clk
0:00:07.6]} 43. Qf8+ {[%clk 0:00:15.6]} 43... Kh7 {[%clk 0:00:08.4]} 44. Qf5+
{[%clk 0:00:17.1]} 44... Kh8 {[%clk 0:00:09.6]} 45. Nf7+ {[%clk 0:00:18.4]}
45... Kg8 {[%clk 0:00:10.7]} 46. Ne5 {[%clk 0:00:19.7]} 46... g6 {[%clk
0:00:08.2]} 47. Qxg6+ {[%clk 0:00:20.4]} 1-0

[Event "*** Titled Tuesday 3|2 Blitz"]
[Site "Chess.com"]
[Date "2017.03.07"]
[Round "2"]
[White "Izoria123"]
[Black "pKiLz5Rn9b"]
[Result "0-1"]
[WhiteElo "2556"]
[BlackElo "2546"]
[TimeControl "180+2"]
[EndTime "13:22:54 PST"]
[Termination "pKiLz5Rn9b won by checkmate"]

1. Nf3 {[%clk 0:03:02]} 1... Nf6 {[%clk 0:03:00.6]} 2. c4 {[%clk 0:03:02.8]}
2... e6 {[%clk 0:03:01.8]} 3. g3 {[%clk 0:03:03.3]} 3... b6 {[%clk 0:03:03.4]}
4. Bg2 {[%clk 0:03:03.8]} 4... Bb7 {[%clk 0:03:05]} 5. d4 {[%clk 0:03:04.6]}
5... Bb4+ {[%clk 0:03:05.1]} 6. Bd2 {[%clk 0:03:04.9]} 6... c5 {[%clk
0:03:05.5]} 7. O-O {[%clk 0:03:01.6]} 7... O-O {[%clk 0:03:05.9]} 8. Bg5 {[%clk
0:02:55.9]} 8... h6 {[%clk 0:02:53.7]} 9. Bxf6 {[%clk 0:02:40.2]} 9... Qxf6
{[%clk 0:02:55.6]} 10. a3 {[%clk 0:02:41.4]} 10... Ba5 {[%clk 0:02:56.6]} 11.
Qa4 {[%clk 0:02:42.8]} 11... Nc6 {[%clk 0:02:45.3]} 12. Rd1 {[%clk 0:02:28.1]}
12... Rfd8 {[%clk 0:02:25.5]} 13. dxc5 {[%clk 0:01:36.3]} 13... bxc5 {[%clk
0:02:01.2]} 14. Nbd2 {[%clk 0:01:37.7]} 14... Rab8 {[%clk 0:01:56.2]} 15. Ne4
{[%clk 0:01:35.3]} 15... Qe7 {[%clk 0:01:54.6]} 16. Nd6 {[%clk 0:01:25]} 16...
Ba8 {[%clk 0:01:53.8]} 17. Rab1 {[%clk 0:01:25.3]} 17... Bc7 {[%clk 0:01:47.1]}
18. Nb5 {[%clk 0:01:25.4]} 18... Bb6 {[%clk 0:01:48.6]} 19. e3 {[%clk
0:01:25.2]} 19... d6 {[%clk 0:01:46]} 20. Rd2 {[%clk 0:01:23.1]} 20... Rd7
{[%clk 0:01:45.7]} 21. Rbd1 {[%clk 0:01:23.1]} 21... Rbd8 {[%clk 0:01:46.4]} 22.
Nc3 {[%clk 0:01:20.1]} 22... Ba5 {[%clk 0:01:41.5]} 23. Rd3 {[%clk 0:01:19.6]}
23... Bxc3 {[%clk 0:01:37.7]} 24. Rxc3 {[%clk 0:01:21.5]} 24... Rb8 {[%clk
0:01:38.4]} 25. Rd2 {[%clk 0:01:19]} 25... Qf6 {[%clk 0:01:34.7]} 26. Qc2 {[%clk
0:01:02.1]} 26... Rdb7 {[%clk 0:01:21.2]} 27. b3 {[%clk 0:00:59.5]} 27... Na5
{[%clk 0:01:03.2]} 28. Rxd6 {[%clk 0:00:38]} 28... Rxb3 {[%clk 0:00:59.9]} 29.
Rxb3 {[%clk 0:00:38.4]} 29... Nxb3 {[%clk 0:01:00.9]} 30. Nd2 {[%clk 0:00:31.3]}
30... Qa1+ {[%clk 0:00:46.9]} 31. Qb1 {[%clk 0:00:28]} 31... Qxb1+ {[%clk
0:00:37.1]} 32. Nxb1 {[%clk 0:00:29.9]} 32... Bxg2 {[%clk 0:00:33.1]} 33. Kxg2
{[%clk 0:00:31.8]} 33... Kf8 {[%clk 0:00:32.1]} 34. Nc3 {[%clk 0:00:29.7]} 34...
Na5 {[%clk 0:00:31.2]} 35. Ra6 {[%clk 0:00:30.4]} 35... Nxc4 {[%clk 0:00:32]}
36. Rxa7 {[%clk 0:00:31.6]} 36... Ne5 {[%clk 0:00:32.2]} 37. Rc7 {[%clk
0:00:26.6]} 37... Nd3 {[%clk 0:00:28.9]} 38. Ne4 {[%clk 0:00:25.1]} 38... Rb2
{[%clk 0:00:27.8]} 39. g4 {[%clk 0:00:23.7]} 39... g5 {[%clk 0:00:27.1]} 40. Kg3
{[%clk 0:00:23.3]} 40... Rc2 {[%clk 0:00:27]} 41. a4 {[%clk 0:00:23.7]} 41... f5
{[%clk 0:00:27.8]} 42. gxf5 {[%clk 0:00:23.3]} 42... exf5 {[%clk 0:00:29.7]} 43.
Nd6 {[%clk 0:00:22.9]} 43... Rxf2 {[%clk 0:00:28.7]} 44. a5 {[%clk 0:00:23.2]}
44... h5 {[%clk 0:00:28.6]} 45. h4 {[%clk 0:00:22.3]} 45... g4 {[%clk
0:00:27.7]} 46. a6 {[%clk 0:00:22.1]} 46... f4+ {[%clk 0:00:17.5]} 47. exf4
{[%clk 0:00:23]} 47... Rf3+ {[%clk 0:00:19.1]} 48. Kh2 {[%clk 0:00:22.5]} 48...
Nxf4 {[%clk 0:00:17.5]} 49. a7 {[%clk 0:00:23.5]} 49... g3+ {[%clk 0:00:18.5]}
50. Kg1 {[%clk 0:00:24.9]} 50... Ne2+ {[%clk 0:00:18.1]} 51. Kg2 {[%clk
0:00:21.2]} 51... Rf2+ {[%clk 0:00:19.3]} 52. Kh3 {[%clk 0:00:20.8]} 52... Rh2#
{[%clk 0:00:20.6]} 0-1

[Event "*** Titled Tuesday 3|2 Blitz"]
[Site "Chess.com"]
[Date "2017.03.07"]
[Round "2"]
[White "HouseOfDurin"]
[Black "ABDELAZEEZ-M"]
[Result "0-1"]
[WhiteElo "1862"]
[BlackElo "1991"]
[TimeControl "180+2"]
[EndTime "13:23:02 PST"]
[Termination "ABDELAZEEZ-M won by resignation"]

1. d4 {[%clk 0:03:02]} 1... d5 {[%clk 0:02:54.3]} 2. c4 {[%clk 0:03:01.6]} 2...
c6 {[%clk 0:02:52.3]} 3. Nc3 {[%clk 0:03:02.8]} 3... Nf6 {[%clk 0:02:52.9]} 4.
Bg5 {[%clk 0:03:02.4]} 4... e6 {[%clk 0:02:52.6]} 5. Bxf6 {[%clk 0:03:03]} 5...
Qxf6 {[%clk 0:02:52.9]} 6. cxd5 {[%clk 0:03:04.9]} 6... exd5 {[%clk 0:02:53.6]}
7. g3 {[%clk 0:03:05.5]} 7... Bb4 {[%clk 0:02:54.1]} 8. Bg2 {[%clk 0:03:06.5]}
8... O-O {[%clk 0:02:54.5]} 9. Nf3 {[%clk 0:03:04]} 9... Bf5 {[%clk 0:02:54.2]}
10. O-O {[%clk 0:03:04]} 10... Nd7 {[%clk 0:02:53.2]} 11. a3 {[%clk 0:02:58.3]}
11... Bd6 {[%clk 0:02:52.1]} 12. b4 {[%clk 0:02:52.7]} 12... Rfe8 {[%clk
0:02:34.5]} 13. h3 {[%clk 0:02:33.3]} 13... a6 {[%clk 0:02:30.4]} 14. Re1 {[%clk
0:02:08.4]} 14... g5 {[%clk 0:02:28.4]} 15. Qd2 {[%clk 0:02:01.3]} 15... h6
{[%clk 0:02:28.5]} 16. Rac1 {[%clk 0:01:49.7]} 16... Nf8 {[%clk 0:02:26.3]} 17.
Na4 {[%clk 0:01:34.4]} 17... Ne6 {[%clk 0:02:18.2]} 18. Nc5 {[%clk 0:01:33.9]}
18... Bxc5 {[%clk 0:02:16.5]} 19. bxc5 {[%clk 0:01:35.8]} 19... g4 {[%clk
0:02:13.4]} 20. hxg4 {[%clk 0:01:30.7]} 20... Bxg4 {[%clk 0:02:14]} 21. Ne5
{[%clk 0:01:32.2]} 21... Bf5 {[%clk 0:02:01.1]} 22. f3 {[%clk 0:01:08.9]} 22...
Nxd4 {[%clk 0:01:48.7]} 23. Nd3 {[%clk 0:00:35.2]} 23... Nb3 {[%clk 0:01:47.6]}
24. Qf4 {[%clk 0:00:20.8]} 24... Nxc1 {[%clk 0:01:46.4]} 25. Nxc1 {[%clk
0:00:18.1]} 25... Kg7 {[%clk 0:01:46.1]} 26. g4 {[%clk 0:00:18.9]} 26... Bg6
{[%clk 0:01:45.2]} 27. Qxf6+ {[%clk 0:00:15.9]} 27... Kxf6 {[%clk 0:01:45.8]}
28. Kf2 {[%clk 0:00:17.8]} 28... d4 {[%clk 0:01:43.2]} 29. f4 {[%clk 0:00:16.4]}
29... Re3 {[%clk 0:01:42.3]} 30. f5 {[%clk 0:00:17]} 30... Bh7 {[%clk
0:01:42.2]} 31. Nd3 {[%clk 0:00:15.5]} 31... h5 {[%clk 0:01:41.6]} 32. Rh1
{[%clk 0:00:14.1]} 32... hxg4 {[%clk 0:01:41.5]} 33. Rxh7 {[%clk 0:00:14]} 33...
Rae8 {[%clk 0:01:41.4]} 34. Bf1 {[%clk 0:00:12.1]} 34... Kxf5 {[%clk 0:01:38.3]}
35. Rxf7+ {[%clk 0:00:12.6]} 35... Kg6 {[%clk 0:01:39.1]} 36. Rxb7 {[%clk
0:00:12]} 36... Rf8+ {[%clk 0:01:39.8]} 37. Kg2 {[%clk 0:00:12.5]} 37... Rf6
{[%clk 0:01:38.4]} 38. Rd7 {[%clk 0:00:11.1]} 38... Re4 {[%clk 0:01:37.4]} 39.
Kg3 {[%clk 0:00:09.5]} 39... Re3+ {[%clk 0:01:37]} 40. Kg2 {[%clk 0:00:09.6]}
40... g3 {[%clk 0:01:34.5]} 41. Rd6 {[%clk 0:00:07.4]} 41... Rxd6 {[%clk
0:01:34.4]} 42. cxd6 {[%clk 0:00:09.3]} 42... Kf6 {[%clk 0:01:35.3]} 43. d7
{[%clk 0:00:08.5]} 43... Ke7 {[%clk 0:01:36.2]} 44. Nc5 {[%clk 0:00:09.5]} 44...
Rxa3 {[%clk 0:01:36.8]} 45. Kg1 {[%clk 0:00:07.5]} 45... Rc3 {[%clk 0:01:37.4]}
46. Ne4 {[%clk 0:00:07.6]} 46... Kxd7 {[%clk 0:01:37.9]} 47. Nxc3 {[%clk
0:00:08.5]} 47... dxc3 {[%clk 0:01:38.7]} 48. Bh3+ {[%clk 0:00:09.9]} 48... Kd6
{[%clk 0:01:38.8]} 49. Bf5 {[%clk 0:00:11.5]} 49... a5 {[%clk 0:01:38.9]} 50.
Bc2 {[%clk 0:00:12.6]} 50... Kc5 {[%clk 0:01:38.4]} 51. e4 {[%clk 0:00:13.5]}
51... Kd4 {[%clk 0:01:38.3]} 52. Kg2 {[%clk 0:00:14.6]} 52... c5 {[%clk
0:01:38]} 53. Kxg3 {[%clk 0:00:15]} 53... a4 {[%clk 0:01:38.6]} 54. Bxa4 {[%clk
0:00:11.3]} 54... Kxe4 {[%clk 0:01:39.6]} 55. Bc2+ {[%clk 0:00:12.4]} 55... Ke3
{[%clk 0:01:40.5]} 56. Kg4 {[%clk 0:00:11.6]} 56... Kd2 {[%clk 0:01:41.7]} 57.
Bb3 {[%clk 0:00:12.6]} 57... c2 {[%clk 0:01:43]} 58. Bxc2 {[%clk 0:00:14]} 58...
Kxc2 {[%clk 0:01:44.2]} 59. Kf4 {[%clk 0:00:15.9]} 59... Kd3 {[%clk 0:01:45.4]}
60. Ke5 {[%clk 0:00:16.5]} 60... c4 {[%clk 0:01:46.7]} 0-1

[Event "*** Titled Tuesday 3|2 Blitz"]
[Site "Chess.com"]
[Date "2017.03.07"]
[Round "2"]
[White "Alexander_Moskalenko"]
[Black "MaestroASK"]
[Result "1/2-1/2"]
[WhiteElo "2711"]
[BlackElo "2494"]
[TimeControl "180+2"]
[EndTime "13:23:08 PST"]
[Termination "Game drawn by repetition"]

1. d4 {[%clk 0:02:51.1]} 1... d5 {[%clk 0:03:00.1]} 2. c4 {[%clk 0:02:51.4]}
2... c6 {[%clk 0:03:00.8]} 3. Nf3 {[%clk 0:02:51.8]} 3... Nf6 {[%clk 0:03:01]}
4. e3 {[%clk 0:02:51.5]} 4... a6 {[%clk 0:03:01.5]} 5. Nbd2 {[%clk 0:02:35.6]}
5... Bf5 {[%clk 0:03:00.5]} 6. Nh4 {[%clk 0:02:34.9]} 6... Bg4 {[%clk
0:02:56.9]} 7. Qc2 {[%clk 0:02:27.6]} 7... e6 {[%clk 0:02:49.7]} 8. h3 {[%clk
0:02:28.5]} 8... Bh5 {[%clk 0:02:50.2]} 9. g4 {[%clk 0:02:30.1]} 9... Bg6 {[%clk
0:02:49.4]} 10. Nxg6 {[%clk 0:02:31.7]} 10... hxg6 {[%clk 0:02:49.7]} 11. Bg2
{[%clk 0:02:33]} 11... Nbd7 {[%clk 0:02:48.6]} 12. O-O {[%clk 0:02:34.1]} 12...
Bd6 {[%clk 0:02:44.9]} 13. e4 {[%clk 0:02:19.5]} 13... Nxg4 {[%clk 0:02:31.3]}
14. e5 {[%clk 0:02:09]} 14... Ndxe5 {[%clk 0:02:16.9]} 15. dxe5 {[%clk 0:02:10]}
15... Nxe5 {[%clk 0:02:15.8]} 16. cxd5 {[%clk 0:02:11]} 16... cxd5 {[%clk
0:02:15.9]} 17. Re1 {[%clk 0:02:10.9]} 17... Kf8 {[%clk 0:02:16]} 18. Nf1 {[%clk
0:02:11.5]} 18... Rc8 {[%clk 0:02:12.9]} 19. Qb3 {[%clk 0:02:12.8]} 19... b5
{[%clk 0:02:09.6]} 20. a4 {[%clk 0:02:10.7]} 20... b4 {[%clk 0:02:09.5]} 21. Bf4
{[%clk 0:02:11.8]} 21... Nc4 {[%clk 0:02:03.8]} 22. Bxd6+ {[%clk 0:02:11.9]}
22... Qxd6 {[%clk 0:02:04.2]} 23. Ne3 {[%clk 0:02:12]} 23... a5 {[%clk
0:01:58.1]} 24. Nxc4 {[%clk 0:02:12.8]} 24... dxc4 {[%clk 0:01:55.9]} 25. Rad1
{[%clk 0:02:02.3]} 25... Qc5 {[%clk 0:01:51.4]} 26. Qf3 {[%clk 0:01:42.9]} 26...
Rh5 {[%clk 0:01:50.2]} 27. Rd7 {[%clk 0:01:33.7]} 27... Rf5 {[%clk 0:01:49.5]}
28. Qg3 {[%clk 0:01:30]} 28... Kg8 {[%clk 0:01:48]} 29. h4 {[%clk 0:01:26.7]}
29... c3 {[%clk 0:01:46.6]} 30. bxc3 {[%clk 0:01:25.6]} 30... Qxc3 {[%clk
0:01:46.8]} 31. Re3 {[%clk 0:01:22.1]} 31... Qa1+ {[%clk 0:01:43.1]} 32. Kh2
{[%clk 0:01:23]} 32... Qxa4 {[%clk 0:01:43.2]} 33. Red3 {[%clk 0:01:17.3]} 33...
Qc2 {[%clk 0:01:40.8]} 34. Rd8+ {[%clk 0:01:08.9]} 34... Kh7 {[%clk 0:01:36.7]}
35. Rxc8 {[%clk 0:01:07]} 35... Qxc8 {[%clk 0:01:36.6]} 36. Be4 {[%clk
0:01:01.8]} 36... Rc5 {[%clk 0:01:32.2]} 37. Rf3 {[%clk 0:01:02.5]} 37... f5
{[%clk 0:01:29.6]} 38. Bb1 {[%clk 0:00:59.2]} 38... Qc7 {[%clk 0:01:28.9]} 39.
Qxc7 {[%clk 0:00:43]} 39... Rxc7 {[%clk 0:01:28.9]} 40. Re3 {[%clk 0:00:44.9]}
40... Rc6 {[%clk 0:01:24.3]} 41. Re5 {[%clk 0:00:34.3]} 41... Ra6 {[%clk
0:01:22.4]} 42. Bd3 {[%clk 0:00:33.3]} 42... Rd6 {[%clk 0:01:22.1]} 43. Bc4
{[%clk 0:00:32.7]} 43... a4 {[%clk 0:01:14.8]} 44. Bxe6 {[%clk 0:00:32.2]} 44...
b3 {[%clk 0:01:13.3]} 45. Bf7 {[%clk 0:00:31.3]} 45... Rb6 {[%clk 0:01:10.1]}
46. Re8 {[%clk 0:00:32.1]} 46... b2 {[%clk 0:01:04.6]} 47. Bg8+ {[%clk
0:00:32.9]} 47... Kh6 {[%clk 0:01:04.9]} 48. Bf7 {[%clk 0:00:26.4]} 48... Kh7
{[%clk 0:00:51.7]} 49. Bg8+ {[%clk 0:00:27.3]} 49... Kh6 {[%clk 0:00:51.8]} 50.
Bf7 {[%clk 0:00:28.7]} 50... Kh7 {[%clk 0:00:42.5]} 51. Bg8+ {[%clk 0:00:29.4]}
51... Kh6 {[%clk 0:00:42.8]} 52. Bf7 {[%clk 0:00:16.8]} 52... Kh7 {[%clk
0:00:42.3]} 53. Bg8+ {[%clk 0:00:17.8]} 53... Kh6 {[%clk 0:00:42.4]} 54. Bf7
{[%clk 0:00:18.8]} 1/2-1/2